[Event "Khanty-Mansiysk FIDE GP (Women)"]
[Site "Khanty-Mansiysk"]
[Date "2014.04.19"]
[Round "9"]
[White "Hou, Yifan"]
[Black "Girya, Olga"]
[Result "1-0"]
[ECO "B85"]
[WhiteElo "2618"]
[BlackElo "2450"]
[Annotator "ChessBase Website"]
[PlyCount "91"]
[EventDate "2014.04.09"]
[EventType "tourn"]
[EventRounds "11"]
[EventCountry "RUS"]
[EventCategory "10"]
[SourceTitle "CBM 160"]
[Source "ChessBase"]
[SourceDate "2014.05.15"]
[SourceVersion "1"]
[SourceVersionDate "2014.05.15"]
[SourceQuality "1"]
[TimeControl "40/5400+30:1800+30"]
[WhiteClock "1:30:00"]
[BlackClock "1:30:00"]

1. e4 {[%emt 0:00:00]} c5 {[%emt 0:00:00]} 2. Nf3 {[%emt 0:00:00]} e6 {[%emt 0:
00:00]} 3. Nc3 {[%emt 0:00:00]} Nc6 {[%emt 0:00:01]} 4. d4 {[%emt 0:00:00]}
cxd4 {[%emt 0:00:05]} 5. Nxd4 {[%emt 0:00:00]} Qc7 {[%emt 0:00:08]} 6. Be3 {
[%emt 0:00:23]} a6 {[%emt 0:00:12]} 7. Be2 {[%emt 0:00:06]} Nf6 {[%emt 0:00:54]
} 8. O-O {[%emt 0:00:08]} Be7 {[%emt 0:00:04]} 9. f4 {[%emt 0:00:09]} d6 {
[%emt 0:00:03]} 10. Kh1 {[%emt 0:00:07]} O-O {[%emt 0:00:28]} 11. Qe1 {[%emt 0:
00:12]} Nxd4 {[%emt 0:00:52]} 12. Bxd4 {[%emt 0:00:07]} b5 {[%emt 0:00:11]} 13.
Qg3 {[%emt 0:00:34]} Bb7 {[%emt 0:04:25]} 14. a3 {[%emt 0:00:29]} Bc6 {[%emt 0:
01:04]} 15. Rae1 {[%emt 0:00:21]} Qb7 {[%emt 0:00:22]} 16. Bd3 {[%emt 0:00:06]}
b4 {[%emt 0:01:42]} 17. Nd1 {[%emt 0:00:06]} bxa3 {[%emt 0:08:06]} (17... g6
18. Nf2 Nh5 19. Qe3 a5 20. Ng4 f6 21. Bc4 Ng7 22. f5 gxf5 23. Rxf5 Kh8 24. Rf3
e5 25. Qh6 exd4 26. Rh3 Bxe4 27. Bd3 Bxd3 28. cxd3 Nh5 29. Qxh5 Bd8 30. Re8
Rxe8 31. Qxe8+ Kg7 32. Rg3 f5 33. Ne5+ Bg5 34. Rxg5+ Kf6 35. Qh5 dxe5 36. Qh6+
{1-0 (36) Guliyev,N (2559)-Schlosser,P (2602) Germany 2014}) 18. bxa3 {[%emt 0:
00:07]} Rac8 {[%emt 0:03:02]} 19. Nf2 {[%emt 0:08:16]} Nh5 {[%emt 0:01:01]} 20.
Qg4 $146 {[%emt 0:22:48]} (20. Qf3 g6 21. Ng4 f6 22. Qe2 Bb5 23. c4 Bc6 24. c5
Bb5 25. cxd6 Bxd6 26. e5 Bxd3 27. Qxd3 fxe5 28. fxe5 Rxf1+ 29. Rxf1 Bf8 30.
Nf6+ Nxf6 31. exf6 Kf7 32. Rb1 Qc6 33. h3 Rc7 34. Be5 {1/2-1/2 (34) Parligras,
M (2601)-Movsesian,S (2723) Germany 2010}) 20... g6 {[%emt 0:04:33]} 21. Qh3 {
[%emt 0:16:22]} Bd7 {[%emt 0:29:53]} 22. Ng4 {[%emt 0:15:34]} e5 {[%emt 0:07:
57]} 23. fxe5 {[%emt 0:01:07]} Bxg4 {[%emt 0:00:45]} 24. Qxg4 {[%emt 0:00:07]}
dxe5 {[%emt 0:00:07]} 25. Bxe5 {[%emt 0:00:07]} Bxa3 {[%emt 0:00:57]} 26. Re3 {
[%emt 0:12:57]} Rc6 {[%emt 0:04:59]} 27. Rh3 {[%emt 0:04:57]} Qc8 {[%emt 0:04:
07]} 28. Qf3 {[%emt 0:03:04]} Re6 {[%emt 0:12:14]} 29. Rxh5 $1 {[%emt 0:09:13]
Clearly the most important result of the round. Hou Yifan started a dangerous
attack on the kingside that had to be met with precision by Black. The
machines give some crazy defensive lines, but Girya did not find them and the
World Champion's bishops ravaged the board. This cost the Russian suitor her
queen and it was simple technique from Hou Yifan that was required to take a
two point commanding lead with only two rounds to go.} gxh5 {[%emt 0:00:27]}
30. Bf6 {[%emt 0:00:01]} Rxf6 {[%emt 0:00:57]} 31. Qxf6 {[%emt 0:00:01]} Qe6 {
[%emt 0:00:24]} 32. Qg5+ {[%emt 0:02:12]} Qg6 {[%emt 0:02:54]} 33. Qd5 {
[%emt 0:00:13]} Re8 {[%emt 0:04:52]} 34. e5 {[%emt 0:03:18]} Qg7 {[%emt 0:00:
52]} 35. Qb3 {[%emt 0:00:24]} Bf8 {[%emt 0:04:02]} 36. Rxf7 {[%emt 0:00:31]}
Qxf7 {[%emt 0:00:12]} 37. Bc4 {[%emt 0:00:03]} Qxc4 {[%emt 0:00:22]} 38. Qxc4+
{[%emt 0:00:01]} Kg7 {[%emt 0:00:09]} 39. Qd5 {[%emt 0:00:42]} Be7 {[%emt 0:01:
21]} 40. Qd7 {[%emt 0:00:00]} Kf8 {[%emt 0:00:00]} 41. Qf5+ {[%emt 0:00:57]}
Kg7 {[%emt 0:00:11]} 42. Qxh5 {[%emt 0:03:01]} Rb8 {[%emt 0:02:07]} 43. g3 {
[%emt 0:02:19]} Rb5 {[%emt 0:00:14]} 44. Qg4+ {[%emt 0:00:13]} Kf8 {[%emt 0:00:
15]} 45. Qf4+ {[%emt 0:01:30]} Kg7 {[%emt 0:00:40]} 46. e6 {[%emt 0:00:41]} 1-0